bitfinex-derivatives/quotes_ETHF0:USTF0_20250404
["timestamp","ask_amount","ask_price","bid_price","bid_amount"]
[1743782194465,2.77992,1799.3,1798.6,4.32016]
[1743782194655,3.2078,1799.0,1798.6,3.2078]
[1743782194860,8.0678,1799.3,1798.8,3.2078]
[1743782195163,3.2078,1799.3,1798.8,3.2078]
[1743782195469,4.31981,1799.3,1799.0,1.11213]
[1743782195668,0.00833865,1799.2,1799.0,1.11213]
[1743782195865,0.00833865,1799.2,1798.9,4.31997]
[1743782196060,0.00833865,1799.2,1799.0,1.11213]
[1743782196259,0.00833865,1799.2,1798.9,4.31999]
[1743782196463,0.00833865,1799.2,1798.9,3.2078]
[1743782196769,1.11215,1799.0,1798.9,3.2078]
[1743782197264,5.7078,1799.0,1798.6,3.2078]
[1743782197464,1.11239,1798.6,1798.5,40.8]
[1743782197666,3.2078,1798.8,1798.5,40.8]
[1743782197868,1.11249,1798.5,1798.3,1.11256]
[1743782198169,1.11241,1798.6,1798.4,1.11248]
[1743782198362,3.2078,1798.6,1798.4,40.8]
[1743782198562,4.32023,1798.6,1798.4,40.8]
[1743782198859,4.32024,1798.6,1798.4,40.8]
[1743782199062,1.11244,1798.6,1798.4,41.91249]
[1743782199259,1.11246,1798.5,1798.4,40.8]
[1743782199459,3.2078,1798.6,1798.4,40.8]
[1743782199666,1.11246,1798.5,1798.4,40.8]
[1743782199865,3.2078,1798.6,1798.1,3.2078]
[1743782199866,1.11259,1798.3,1798.1,3.2078]
[1743782200066,1.11259,1798.3,1798.2,3.2078]
[1743782200266,3.2078,1798.4,1798.0,4.86]
[1743782200560,3.2078,1798.4,1797.9,37.80107]
[1743782200561,3.2078,1798.4,1797.9,1.11279]
[1743782200762,3.2078,1798.4,1797.9,3.2078]
[1743782200969,1.11258,1798.3,1798.1,1.11266]
[1743782201368,4.32869865,1798.4,1797.9,5.98986]
[1743782201567,3.21613865,1798.4,1797.9,3.2078]
[1743782201865,1.11264,1798.2,1798.1,1.11266]
[1743782202069,0.00833865,1798.4,1797.9,3.2078]
[1743782202263,0.00833865,1798.4,1798.3,4.32038]
[1743782202473,0.00833865,1798.4,1798.3,45.12038]
[1743782202668,0.00833865,1798.4,1798.3,47.62038]
[1743782203475,0.00833865,1798.4,1798.3,45.12038]
[1743782204569,0.00833865,1798.4,1798.3,41.91258]
[1743782205074,0.00833865,1798.4,1798.3,45.12038]
[1743782205673,0.00833865,1798.4,1798.3,41.91258]
[1743782205871,0.00833865,1798.4,1798.3,45.12038]
[1743782206674,1.1123,1798.8,1798.3,45.12038]
[1743782206675,1.11234,1798.7,1798.3,46.5078]
[1743782206970,3.2078,1799.1,1798.5,3.2078]
[1743782207168,5.98803,1799.1,1798.5,3.2078]
[1743782207569,1.11224,1798.9,1798.7,1.1123]
[1743782208077,0.00833865,1799.0,1798.6,0.00833865]
[1743782208275,1.11233,1798.7,1798.6,0.00833865]
[1743782208676,1.11232,1798.8,1798.6,1.12072865]
[1743782208978,1.11233,1798.7,1798.6,0.00833865]
[1743782209366,3.61233,1798.7,1798.6,0.00833865]
[1743782210880,5.99654865,1799.0,1798.6,0.00833865]
[1743782211080,3.21613865,1799.0,1798.6,0.00833865]
[1743782211375,1.11233,1798.8,1798.7,1.11232]
[1743782211574,0.00833865,1799.0,1798.9,1.11221]
[1743782211875,0.00833865,1799.0,1798.8,1.11221]
[1743782212079,0.00833865,1799.0,1798.9,1.11221]
[1743782214071,1e-08,1799.0,1798.9,4.32001]
[1743782214673,1e-08,1799.0,1798.9,6.82001]
[1743782214873,1e-08,1799.0,1798.9,1.11221]
[1743782215169,1e-08,1799.0,1798.9,3.61221]
[1743782215381,1e-08,1799.0,1798.9,4.32001]
[1743782216085,1e-08,1799.0,1798.9,1.11221]
[1743782216282,1.11221,1798.9,1798.7,3.2078]
[1743782216579,1e-08,1799.0,1798.9,1.11221]
[1743782216775,1e-08,1799.0,1798.9,9.17701]
[1743782217074,1e-08,1799.0,1798.9,11.67701]
[1743782217274,1e-08,1799.0,1798.9,4.32001]
[1743782218281,3.2078,1799.7,1798.9,3.2078]
[1743782218478,1.11182,1799.6,1799.3,1.11195]
[1743782218684,4.10342,1799.6,1799.3,1.11191]
[1743782218981,4.10342,1799.6,1799.4,1.1119]
[1743782218982,4.2325,1799.5,1799.4,1.1119]
[1743782219685,4.2325,1799.5,1799.2,3.2078]
[1743782219983,1.1119,1799.4,1799.2,1.11199]
[1743782220178,4.2325,1799.3,1799.2,4.31982]
[1743782220489,5.34448,1799.3,1799.0,4.2067]
[1743782220686,4.2325,1799.3,1799.2,1.11202]
[1743782220983,4.2325,1799.3,1799.0,5.98815]
[1743782221183,4.2325,1799.3,1799.2,1.11202]
[1743782221382,4.2325,1799.3,1799.2,4.31982]
[1743782221678,0.00833865,1799.6,1799.5,1.11184]
[1743782222276,5.28791865,1799.6,1799.1,3.2078]
[1743782222477,1.1119,1799.4,1799.3,1.11192]
[1743782222684,1.1119,1799.4,1799.2,1.11198]
[1743782222886,4.2265,1799.3,1799.2,1.11202]
[1743782223480,4.2265,1799.3,1799.2,4.31982]
[1743782223679,4.2265,1799.3,1799.2,41.91202]
[1743782224081,4.2265,1799.3,1799.2,4.31982]
[1743782224277,4.2265,1799.3,1799.2,1.11202]
[1743782224589,4.2265,1799.3,1799.0,5.98816]
[1743782224781,4.2265,1799.3,1799.2,4.31982]
[1743782225081,2.82083865,1799.6,1799.4,1.11189]
[1743782225275,5.72973865,1799.6,1799.5,1.11184]
[1743782225480,0.00833865,1799.6,1799.5,1.11184]
[1743782225682,2.8305,1800.1,1799.8,1.11163]
[1743782225885,2.8305,1800.1,1799.6,2.77945]
[1743782226089,3.94199,1800.1,1799.7,2.77915]
[1743782226286,2.8305,1800.1,1799.6,7.0872]
[1743782226484,2.8305,1800.1,1799.9,1.11157]
[1743782226782,1.11161,1799.9,1799.6,3.2078]
[1743782226987,2.8305,1800.1,1799.8,0.00833865]
[1743782227189,3.94202,1800.1,1799.8,0.00833865]
[1743782227490,4.1773,1800.0,1799.9,1.11159]
[1743782227989,1.11159,1799.9,1799.8,0.00833865]
[1743782228388,7.65819,1799.9,1799.8,0.00833865]
[1743782228588,7.65819,1799.9,1799.8,1.11998865]
[1743782228779,4.0466,1799.9,1799.8,1.11998865]
[1743782229486,1.11975865,1800.2,1799.8,1.11998865]
[1743782229487,0.00833865,1800.2,1800.1,1.11147]
[1743782229790,0.00833865,1800.2,1799.8,10.09293865]
[1743782229996,1.11978865,1800.2,1800.0,1.11149]
[1743782230488,0.00833865,1800.2,1799.8,3.21613865]
[1743782230688,3.2078,1800.1,1799.8,1.11995865]
[1743782230881,1.11159,1799.9,1799.8,1.11998865]
[1743782231079,1.11159,1799.9,1799.8,0.00833865]
[1743782231280,7.67769,1799.9,1799.8,0.00833865]
[1743782231783,7.67769,1799.9,1799.8,1.11998865]
[1743782231988,7.67769,1799.9,1799.8,0.00833865]
[1743782232185,6.5661,1799.9,1799.8,0.00833865]
[1743782232387,7.67769,1799.9,1799.8,0.00833865]
[1743782232794,1.11187,1799.5,1799.4,1.11185]
[1743782233284,1.1118,1799.6,1799.5,1.11178]
[1743782233487,1.11187,1799.5,1799.4,1.11183]
[1743782233690,1.1118,1799.6,1799.5,1.11178]
[1743782233889,3.2078,1799.7,1799.3,2.77991]
[1743782234192,8.6019,1800.0,1799.8,1.11165]
[1743782234391,8.6019,1800.0,1799.9,1.11159]
[1743782234392,2.7739,1800.0,1799.9,1.11159]
[1743782235196,3.88543,1800.0,1799.9,1.11159]
[1743782235400,2.7739,1800.0,1799.9,1.11159]
[1743782235787,2.7739,1800.0,1799.8,1.11161]
[1743782236097,3.9071,1799.9,1799.8,1.11165]
[1743782236793,5.01869,1799.9,1799.7,3.2078]
[1743782236985,3.9071,1799.9,1799.8,1.11165]
[1743782237192,5.01869,1799.9,1799.8,1.11165]
[1743782237488,5.01869,1799.9,1799.7,8.56607]
[1743782237694,3.9071,1799.9,1799.7,8.56607]
[1743782237994,3.9071,1799.9,1799.8,1.11165]
[1743782238890,0.00833865,1800.2,1800.1,1.11147]
[1743782239093,0.00833865,1800.2,1800.0,1.11148]
[1743782239285,5.55323865,1800.2,1800.1,4.2466]
[1743782239489,4.44183865,1800.2,1800.1,8.56587]
[1743782239690,4.44183865,1800.2,1800.1,5.35807]
[1743782239892,4.44183865,1800.2,1800.1,7.4544]
[1743782240092,4.44183865,1800.2,1800.1,4.2466]
[1743782240397,4.44183865,1800.2,1800.1,8.56587]
[1743782240598,4.44183865,1800.2,1800.1,4.31927]
[1743782240995,0.00833865,1800.2,1800.1,4.31927]
[1743782241795,2.77867,1800.1,1799.4,5.98754]
[1743782242000,10.1726,1800.0,1799.9,1.11159]
[1743782242300,1.11166,1799.8,1799.4,7.06895]
[1743782242501,6.75465,1800.0,1799.8,1.11161]
[1743782242699,4.5295,1799.9,1799.8,1.11165]
[1743782243002,0.00833865,1800.2,1800.1,1.11147]
[1743782243192,1e-08,1800.2,1800.1,12.78527]
[1743782243600,1e-08,1800.2,1800.1,53.58527]
[1743782243788,1e-08,1800.2,1800.1,56.62647]
[1743782244195,1e-08,1800.2,1800.1,63.68446723]
[1743782246002,4.3055,1801.1,1801.0,1.11091]
[1743782246703,4.3055,1801.1,1801.0,4.31871]
[1743782246903,2.932,1801.6,1801.4,1.11063]
[1743782247107,4.3264,1801.5,1801.4,1.11066]
[1743782247399,1.11066,1801.4,1801.3,0.00833865]
[1743782247603,4.31846,1801.4,1801.3,0.00833865]
[1743782247901,5.7078,1801.4,1800.6,3.2078]
[1743782248104,5.7078,1801.4,1800.6,1.11116]
[1743782248105,1.1111,1800.7,1800.6,1.11116]
[1743782248306,5.98528,1800.9,1800.2,3.2078]
[1743782248599,1.11122,1800.5,1800.3,1.1113]
[1743782248802,5.43771,1800.4,1800.2,4.31917]
[1743782248998,1.11134,1800.3,1800.2,3.21613865]
[1743782249203,7.269,1800.3,1800.2,0.00833865]
[1743782249403,8.38034,1800.3,1800.2,0.00833865]
[1743782249603,7.269,1800.3,1800.2,1.11973865]
[1743782250004,8.38034,1800.3,1800.2,0.00833865]
[1743782250198,10.88034,1800.3,1800.2,0.00833865]
[1743782250504,14.08814,1800.3,1800.2,0.00833865]
[1743782250903,4.2962,1800.3,1800.2,4.32753865]
[1743782251807,0.00833865,1800.6,1800.5,1.11122]
[1743782252001,4.30453865,1800.6,1800.5,1.11122]
[1743782252304,4.30453865,1800.6,1800.4,1.11123]
[1743782252505,4.30453865,1800.6,1800.3,4.4738]
[1743782252506,5.41570865,1800.6,1800.5,1.11122]
[1743782252803,7.51233865,1800.6,1800.4,1.11125]
[1743782253111,10.29026865,1800.6,1800.2,0.00833865]
[1743782253405,1.11126,1800.5,1800.3,1.11132]
[1743782253605,5.39338,1800.4,1800.3,1.11132]
[1743782253804,5.39338,1800.4,1800.2,1.11971865]
[1743782254004,5.39338,1800.4,1800.3,4.31914]
[1743782254005,4.2821,1800.4,1800.3,4.31914]
[1743782254310,4.2821,1800.4,1800.3,1.11134]
[1743782254996,4.2821,1800.4,1800.2,0.00833865]
[1743782255403,9.9899,1800.4,1799.9,3.2078]
[1743782255608,1.11153,1800.0,1799.9,3.2078]
[1743782255812,3.2078,1800.2,1799.6,2.77945]
[1743782256007,4.2821,1800.4,1799.7,7.7879]
[1743782256008,4.4262,1799.9,1799.7,7.7879]
[1743782256200,4.4262,1799.9,1799.8,1.11165]
[1743782256709,4.4262,1799.9,1799.7,4.32781865]
[1743782256910,4.4262,1799.9,1799.7,0.00833865]
[1743782257204,1.11165,1799.8,1799.7,0.00833865]
[1743782257409,11.24563,1799.9,1799.7,1.12004865]
[1743782257612,7.634,1799.9,1799.8,1.11165]
[1743782257811,1.11165,1799.8,1799.7,0.00833865]
[1743782257997,5.53785,1799.8,1799.7,0.00833865]
[1743782258204,4.4262,1799.8,1799.7,0.00833865]
[1743782258398,5.53785,1799.8,1799.7,0.00833865]
[1743782258703,8.03785,1799.8,1799.7,0.00833865]
[1743782260110,5.53785,1799.8,1799.7,0.00833865]
[1743782260306,4.4262,1799.8,1799.7,0.00833865]
[1743782260508,4.4262,1799.8,1799.7,1.12004865]
[1743782261210,4.4262,1799.8,1799.7,0.00833865]
[1743782261813,1.11185,1799.5,1799.3,4.31975]
[1743782262001,4.3075,1799.4,1799.3,1.11195]
[1743782262209,1.11206,1799.2,1798.9,3.2078]
[1743782262507,1.11206,1799.2,1798.8,4.843]
[1743782262508,4.3075,1799.1,1799.0,4.31995]
[1743782262814,1.11162,1799.9,1799.2,2.78002]
[1743782263112,0.00833865,1799.7,1799.6,3.2078]
[1743782263414,0.00833865,1799.7,1799.6,4.31958]
[1743782264005,1.11122,1800.5,1800.3,1.11129]
[1743782264215,4.0452,1800.4,1800.3,4.31914]
[1743782264517,1.11121,1800.6,1800.3,40.8]
[1743782264711,1.11106,1800.8,1800.6,1.11114]
[1743782265013,4.0452,1800.7,1800.6,1.11114]
[1743782265313,2.868,1800.9,1800.8,1.11103]
[1743782265314,0.00833865,1800.9,1800.8,1.11103]
[1743782265511,0.00833865,1800.9,1800.8,4.31883]
[1743782266111,3.2078,1801.4,1800.9,1.11094]
[1743782266311,1.11087,1801.1,1801.0,3.2078]
[1743782266511,1.1111,1800.7,1800.5,0.00833865]
[1743782266710,1.11108,1800.8,1800.5,3.21613865]
[1743782266910,4.0452,1800.7,1800.5,0.00833865]
[1743782267108,5.15634,1800.7,1800.5,0.00833865]
[1743782267307,1.11116,1800.6,1800.5,0.00833865]
[1743782267512,8.02866,1800.6,1800.5,0.00833865]
[1743782267709,13.40296,1800.6,1800.5,0.00833865]
[1743782267919,2.77827,1800.4,1799.8,53.7984068]
[1743782268114,3.2078,1800.2,1799.8,3.2078]
[1743782268316,6.584,1800.1,1799.7,5.95267]
[1743782268519,1.11167,1799.8,1799.6,1.11176]
[1743782268710,3.7097,1799.7,1799.6,4.31956]
[1743782268911,4.82143,1799.7,1799.4,11.9981]
[1743782269111,3.7097,1799.7,1799.6,1.11178]
[1743782269313,3.7097,1799.7,1799.6,4.31958]
[1743782269815,0.00833865,1799.8,1799.7,1.11171]
[1743782270012,0.00833865,1799.8,1799.7,7.56101]
[1743782270914,0.00833865,1799.8,1799.7,5.06101]
[1743782271123,0.00833865,1799.8,1799.7,1.11171]
[1743782272017,0.00833865,1799.8,1799.7,5.06101]
[1743782272218,0.00833865,1799.8,1799.7,1.11171]
[1743782272612,1.11171,1799.7,1799.5,1.12015865]
[1743782272922,5.03098,1799.6,1799.5,0.00833865]
[1743782273322,3.9192,1799.6,1799.5,1.12017865]
[1743782273817,3.9192,1799.6,1799.5,0.00833865]
[1743782274016,7.53098,1799.6,1799.5,0.00833865]
[1743782275417,1.11221,1798.9,1798.8,8.6789668]
[1743782275614,3.2078,1799.0,1798.8,8.6789668]
[1743782275825,4.16081,1798.9,1798.8,49.4789668]
[1743782276228,4.16081,1798.9,1798.8,40.8]
[1743782276416,1.11246,1798.5,1798.3,1.11255]
[1743782276618,3.7418,1798.4,1798.2,11.8867668]
[1743782276816,3.7418,1798.4,1798.3,1.11258]
[1743782277222,3.7418,1798.4,1798.2,9.7915768]
[1743782277426,3.7418,1798.4,1798.3,1.11258]
[1743782277622,3.7418,1798.4,1798.2,9.7915668]
[1743782277816,4.85433,1798.4,1798.2,8.6789668]
[1743782278128,4.32038,1798.3,1798.2,8.6789668]
[1743782278421,4.85438,1798.3,1798.2,8.6789668]
[1743782278622,1.11264,1798.2,1798.1,12.896179]
[1743782278818,4.32044,1798.2,1798.1,9.77548903]
[1743782279124,1.11298,1797.7,1797.5,3.8123]
[1743782279322,1.11295,1797.7,1797.5,3.8123]
[1743782279516,3.2078,1797.6,1797.5,3.8123]
[1743782279826,1.11283,1797.9,1797.6,1.11297]
[1743782280222,1.11297,1797.7,1797.5,3.8123]
[1743782280415,4.32081,1797.6,1797.5,3.8123]
[1743782280621,3.2078,1797.6,1797.0,2.7917]
[1743782280813,3.2078,1797.4,1797.0,3.683]
[1743782281113,8.0478,1797.6,1797.0,3.683]
[1743782281320,0.00833865,1797.4,1797.3,1.11319]
[1743782281624,0.00833865,1797.4,1797.3,4.32099]
[1743782282317,3.2078,1797.8,1797.4,1.11308]
[1743782282521,3.2078,1797.8,1797.6,1.11298]
[1743782282719,1.11273,1798.1,1797.8,1.11287]
[1743782282921,8.10597,1798.2,1797.9,5.0977]
[1743782283116,1.11276,1798.0,1797.9,3.9849]
[1743782283320,1.11298,1797.7,1797.5,3.2078]
[1743782283520,4.89837,1797.9,1797.8,0.00833865]
[1743782283924,4.89837,1797.9,1797.8,40.80833865]
[1743782284120,7.39837,1797.9,1797.8,40.80833865]
[1743782284527,1.11301,1797.6,1797.5,3.2078]
[1743782284922,1.11307,1797.5,1797.4,3.9849]
[1743782285423,4.89857,1797.5,1797.4,44.7849]
[1743782285622,4.89857,1797.5,1797.4,40.8]
[1743782286025,4.89857,1797.5,1797.0,6.2281]
[1743782286026,1.1132,1797.3,1797.0,6.2281]
[1743782286221,4.32112,1797.1,1797.0,6.771]
[1743782286423,3.2078,1797.1,1796.4,2.815]
[1743782286632,3.2078,1796.8,1796.1,3.2078]
[1743782286833,3.787,1796.7,1796.2,3.7507]
[1743782287228,3.787,1796.7,1796.2,6.9585]
[1743782287529,0.00833865,1796.9,1796.2,6.9585]
[1743782287530,0.00833865,1796.9,1796.6,3.2078]
[1743782287727,3.787,1796.8,1796.7,4.86427]
[1743782287934,3.787,1796.8,1796.7,3.7507]
[1743782288231,3.787,1796.8,1796.6,1.11361]
[1743782288430,0.00833865,1796.9,1796.5,3.7507]
[1743782288631,0.00833865,1796.9,1796.7,1.11354]
[1743782288831,0.00833865,1796.9,1796.8,5.10351]
[1743782289029,0.00833865,1796.9,1796.8,8.31131]
[1743782289530,0.00833865,1796.9,1796.8,5.10351]
[1743782289723,0.00833865,1796.9,1796.4,3.2078]
[1743782289927,0.00833865,1796.9,1796.8,1.11351]
[1743782290127,0.00833865,1796.9,1796.7,1.11353]
[1743782290329,0.00833865,1796.9,1796.8,5.10351]
[1743782290529,0.00833865,1796.9,1796.4,3.2078]
[1743782290726,1.12181865,1796.9,1796.6,3.99]
[1743782290926,3.7213,1796.8,1796.7,1.11357]
[1743782291635,3.7213,1796.8,1796.7,5.18297]
[1743782291830,0.00833865,1796.9,1796.8,1.11351]
[1743782292731,3.98033865,1796.9,1796.8,41.91351]
[1743782293232,5.09378865,1796.9,1796.8,40.8]
[1743782293629,3.98033865,1796.9,1796.8,41.91351]
[1743782293836,5.09378865,1796.9,1796.8,40.8]
[1743782294031,6.48033865,1796.9,1796.4,3.2078]
[1743782294233,10.24423865,1796.9,1796.5,1.11365]
[1743782294434,1.11369,1796.5,1796.4,44.0078]
[1743782294634,1.11386,1796.3,1796.1,4.32173]
[1743782294932,1.1141,1795.9,1795.4,5.99374]
[1743782295136,8.0498,1796.1,1795.6,1.11422]
[1743782295334,8.0498,1796.1,1795.5,44.3863]
[1743782295335,0.00833865,1795.8,1795.5,44.3863]
[1743782295732,0.00833865,1795.8,1795.5,3.5863]
[1743782295932,1.11425,1795.6,1795.5,3.5863]
[1743782296139,1.11447,1795.3,1795.1,7.22313]
[1743782296332,1.11444,1795.3,1795.2,40.8]
[1743782296530,3.2078,1795.4,1795.0,6.7941]
[1743782296732,3.2078,1795.4,1794.8,17.24738628]
[1743782296733,1.11469,1794.9,1794.8,17.24738628]
[1743782296938,3.2078,1795.1,1794.8,17.24738628]
[1743782297138,1.11462,1795.0,1794.8,58.04738628]
[1743782297336,1.11469,1794.9,1794.8,58.04738628]
[1743782297531,3.2078,1794.9,1794.8,18.36213628]
[1743782297737,3.2078,1795.1,1794.8,17.24738628]
[1743782297937,3.2078,1795.1,1794.8,21.12768628]
[1743782298142,1.1146,1795.1,1794.9,4.99499]
[1743782298544,1.11451,1795.2,1795.1,1.11456]
[1743782298844,8.0508,1795.3,1794.9,3.8803]
[1743782299242,1.11458,1795.1,1794.9,4.99495]
[1743782299450,8.0508,1795.3,1795.2,1.1145]
[1743782299742,8.0508,1795.3,1794.9,3.8803]
[1743782299934,4.32216,1795.5,1795.3,1.11442]
[1743782300341,1.11441,1795.4,1795.2,1.11447]
[1743782300558,4.32216,1795.5,1795.3,41.91444]
[1743782300842,1.11438,1795.4,1795.3,40.8]
[1743782301234,3.61438,1795.4,1795.3,40.8]
[1743782301636,1.11464,1795.0,1794.7,1.11477]
[1743782301833,1.11469,1794.9,1794.8,3.818]
[1743782302142,1.1147,1794.9,1794.7,1.1148]
[1743782302337,1.11466,1795.0,1794.7,1.11478]
[1743782302544,1.11469,1794.9,1794.8,44.618]
[1743782302736,4.32249,1794.9,1794.8,3.818]
[1743782302940,1.11469,1794.9,1794.8,3.818]
[1743782303241,0.00833865,1795.0,1794.8,45.73272]
[1743782303442,0.00833865,1795.0,1794.8,45.73271]
[1743782303745,1.11469,1794.9,1794.8,40.8]
[1743782303945,1.11483,1794.7,1794.5,3.5982]
[1743782304243,1.11487,1794.6,1794.5,3.5982]
[1743782304640,1.11518,1794.1,1794.0,3.2078]
[1743782304838,1.11518,1794.1,1793.8,1.11535]
[1743782305040,3.7654,1794.4,1793.9,3.5982]
[1743782305442,3.7654,1794.4,1794.0,40.8]
[1743782305443,1.11518,1794.1,1794.0,40.8]
[1743782305746,1.11516,1794.2,1794.0,40.8]
[1743782305951,1.11518,1794.1,1794.0,40.8]
[1743782306139,1.11525,1794.0,1793.6,3.2078]
[1743782306345,3.2078,1794.1,1793.6,4.32327]
[1743782306540,1.11535,1793.9,1793.7,3.5982]
[1743782306736,0.00836259,1794.0,1793.8,41.91537]
[1743782306941,0.00836259,1794.0,1793.9,1.11531]
[1743782307246,0.00836259,1794.0,1793.9,4.78451]
[1743782307743,0.00836259,1794.0,1793.9,3.6692]
[1743782308248,0.00836259,1794.0,1793.9,45.58451]
[1743782310245,0.00836259,1794.0,1793.9,48.08451]
[1743782310550,3.2078,1794.7,1793.9,46.9692]
[1743782310745,1.11504,1794.4,1794.2,3.2078]
[1743782310939,5.99483,1794.7,1794.2,3.5635]
[1743782311144,1.11501,1794.4,1794.2,7.88642]
[1743782311450,0.00836259,1794.5,1794.2,6.7713]
[1743782311748,0.00836259,1794.5,1794.3,1.11504]
[1743782311949,0.00836259,1794.5,1794.2,6.7713]
[1743782311950,1.12330259,1794.5,1794.4,3.5635]
[1743782312152,3.21616259,1794.5,1794.1,1.11515]
[1743782312346,1.11506,1794.3,1794.0,3.2078]
[1743782312549,3.5459,1794.2,1794.0,3.2078]
[1743782312747,3.5459,1794.2,1794.0,6.7713]
[1743782312951,3.5459,1794.2,1794.0,7.8865]
[1743782313143,3.5459,1794.2,1794.1,1.11518]
[1743782313348,0.00836259,1794.5,1794.0,6.7713]
[1743782313544,3.7724,1794.4,1794.0,6.7713]
[1743782313742,3.7724,1794.4,1794.2,1.11508]
[1743782313949,3.7724,1794.4,1794.3,4.73456]
[1743782314151,3.7724,1794.4,1794.3,3.6195]
[1743782314547,1.11506,1794.3,1794.2,3.2078]
[1743782314747,4.88743,1794.4,1794.2,4.32291]
[1743782314955,3.7724,1794.4,1794.3,1.11506]
[1743782315156,3.7724,1794.4,1794.2,1.11509]
[1743782315452,3.7724,1794.4,1794.0,9.6154]
[1743782315652,3.7724,1794.4,1794.3,1.11506]
[1743782316058,3.7724,1794.4,1794.2,1.11511]
[1743782316351,3.7724,1794.4,1794.0,3.6195]
[1743782316557,3.7724,1794.4,1794.0,6.40761]
[1743782316857,1.11512,1794.2,1794.0,4.73469]
[1743782317055,3.7724,1794.4,1794.0,3.6195]
[1743782317255,3.7724,1794.4,1794.2,1.11508]
[1743782317456,4.88742,1794.4,1794.2,1.11508]
[1743782317655,4.88745,1794.4,1794.0,3.8868]
[1743782317959,3.7724,1794.4,1794.3,1.11506]
[1743782318557,3.7724,1794.4,1794.1,3.2078]
[1743782318558,1.1151,1794.3,1794.1,1.11516]
[1743782318758,4.88743,1794.4,1794.2,1.11509]
[1743782319059,4.88743,1794.4,1794.0,9.88271]
[1743782319352,1.12330259,1794.5,1794.4,1.115]
[1743782319654,0.00836259,1794.5,1794.2,3.7872]
[1743782319960,3.71916259,1794.5,1794.3,1.11503]
[1743782320252,3.71916259,1794.5,1794.4,1.115]
[1743782320654,4.83410259,1794.5,1794.3,1.11501]
[1743782320852,0.00836259,1794.5,1794.4,1.115]
[1743782321053,0.00836259,1794.5,1794.4,4.9022]
[1743782322654,1.12330259,1794.5,1794.4,4.9022]
[1743782322863,0.00836259,1794.5,1794.4,4.9022]
[1743782323261,0.00836259,1794.5,1794.4,8.11]
[1743782323557,0.00836259,1794.5,1794.4,4.9022]
[1743782324258,0.00836259,1794.5,1794.4,8.11]
[1743782324561,3.5311,1794.8,1794.5,1.11493]
[1743782324760,3.2078,1794.7,1794.5,3.5489]
[1743782325063,3.787,1794.6,1794.4,1.11498]
[1743782325564,3.787,1794.6,1794.3,3.7734]
[1743782325861,1.12319259,1794.7,1794.6,1.11487]
[1743782326359,0.00836259,1794.7,1794.6,1.11487]
[1743782326561,1.11487,1794.6,1794.5,4.88829]
[1743782326756,3.79536259,1794.7,1794.6,1.11487]
[1743782327154,3.79536259,1794.7,1794.5,1.11488]
[1743782327155,1.11487,1794.6,1794.5,1.11488]
[1743782327355,3.2078,1794.6,1794.3,6.56103]
[1743782327560,3.787,1794.5,1794.4,1.115]
[1743782327756,3.787,1794.5,1794.4,4.8884]
[1743782328458,1.11488,1794.6,1794.4,3.7734]
[1743782328662,3.7413,1794.6,1794.5,1.1149]
[1743782328849,1.12319259,1794.7,1794.4,6.9812]
[1743782328850,0.00836259,1794.7,1794.4,6.9812]
[1743782329055,0.00836259,1794.7,1794.6,1.11487]
[1743782329558,0.00836259,1794.7,1794.6,4.32267]
[1743782330262,2.78595,1795.4,1794.7,2.78691]
[1743782330461,1.11461,1795.1,1794.9,1.11464]
[1743782330662,3.7413,1795.0,1794.9,1.11469]
[1743782330865,3.7413,1795.0,1794.9,45.36189]
[1743782331058,4.85592,1795.0,1794.9,45.36189]
[1743782331260,3.7413,1795.0,1794.9,45.36189]
[1743782331665,0.00836259,1795.1,1795.0,1.11462]
[1743782331962,0.00836259,1795.1,1795.0,8.06272]
[1743782332461,0.00836259,1795.1,1795.0,4.85492]
[1743782333266,0.00836259,1795.1,1795.0,8.06272]
[1743782333668,3.7788,1795.4,1795.3,1.11444]
[1743782333863,1.1143,1795.6,1795.4,1.11433]
[1743782334166,1.11431,1795.5,1795.3,1.11438]
[1743782334367,4.75381,1795.5,1795.4,3.5323]
[1743782334962,3.6395,1795.5,1795.4,3.5323]
[1743782335162,3.6395,1795.5,1795.4,4.64668]
[1743782335359,0.00836259,1795.6,1795.5,1.11431]
[1743782335662,3.7654,1796.0,1795.8,1.11408]
[1743782335663,1.11402,1796.0,1795.8,1.11408]
[1743782335862,1.11402,1796.0,1795.9,1.11407]
[1743782336065,3.6395,1796.0,1795.7,3.5323]
[1743782336259,3.6395,1796.0,1795.4,3.2078]
[1743782336260,1.11413,1795.8,1795.4,3.2078]
[1743782336467,3.6395,1795.7,1795.3,2.814]
[1743782336669,4.7537,1795.7,1795.4,0.00836259]
[1743782336865,3.6395,1795.7,1795.6,1.11425]
[1743782337171,0.00836259,1795.8,1795.7,1.11419]
[1743782337364,0.00836259,1795.8,1795.4,9.53441259]
[1743782337365,0.00836259,1795.8,1795.6,3.6959]
[1743782337664,3.55106259,1795.8,1795.7,1.11419]
[1743782338670,1.11431,1795.5,1795.4,3.21616259]
[1743782338868,1.11431,1795.5,1795.4,0.00836259]
[1743782339775,1.11451,1795.2,1795.1,1.11455]
[1743782339976,3.2078,1795.2,1794.7,13.01740615]
[1743782340166,4.74476,1795.1,1795.0,1.11457]
[1743782340368,1.11462,1795.0,1794.9,1.11464]
[1743782340678,1.11447,1795.3,1795.2,1.1145]
[1743782340873,3.6302,1795.3,1795.2,1.1145]
[1743782341474,1.11441,1795.4,1795.2,3.5151]
[1743782341676,1.11441,1795.4,1795.3,1.11444]
[1743782341875,1.11444,1795.3,1795.2,3.5151]
[1743782342175,4.74468,1795.3,1795.2,1.1145]
[1743782342372,4.74468,1795.3,1795.1,0.00836259]